fUST/lending_fUST_20260219
["ID","MTS","AMOUNT","RATE_DAILY","PERIOD"]
[405980064,1771489282261,-914.23659296,0.00015401,2]
[405980065,1771489282283,-500.0,0.00015431,2]
[405980066,1771489282304,-500.0,0.00015431,2]
[405980067,1771489282325,-1200.0,0.00015432,2]
[405980068,1771489282467,-300.0,0.00015432,2]
[405980069,1771489282488,-2162.9186622,0.00015433,2]
[405980070,1771489282508,-161.8903438,0.00015433,2]
[405980071,1771489282528,-15379.9816875,0.00015433,2]
[405980072,1771489282548,-754.9080964,0.00015433,2]
[405980073,1771489282574,-300.0,0.00015741,2]
[405980074,1771489282596,-300.0,0.00015741,2]
[405980075,1771489282618,-300.0,0.00015741,2]
[405980076,1771489282640,-300.0,0.00015741,2]
[405980077,1771489282662,-300.0,0.00015741,2]
[405980078,1771489282686,-300.0,0.00015741,2]
[405980079,1771489282708,-300.0,0.00015741,2]
[405980080,1771489282730,-300.0,0.00015741,2]
[405980081,1771489282754,-300.0,0.00015741,2]
[405980082,1771489282777,-300.0,0.00015741,2]
[405980083,1771489282801,-300.0,0.00015741,2]
[405980084,1771489282824,-300.0,0.00015741,2]
[405980085,1771489282847,-300.0,0.00015741,2]
[405980086,1771489282869,-300.0,0.00015741,2]
[405980087,1771489282892,-300.0,0.00015741,2]
[405980088,1771489282917,-600.0,0.00015741,2]
[405980089,1771489282939,-1744.51832358,0.00016439,2]
[405980090,1771489282958,-62228.175732,0.00016784,2]
[405980091,1771489282979,-161.244517,0.00016942,2]
[405980092,1771489283001,-7506.9471305,0.00016999,2]
[405980093,1771489283021,-15379.9816875,0.00017287,2]
[405980094,1771489283043,-720.0,0.00017315,2]
[405980095,1771489283063,-754.9080964,0.00017489,2]
[405980096,1771489283084,-2162.9186622,0.00017547,2]
[405980097,1771489283107,-2574.80005421,0.0001759,2]
[405980098,1771489283128,-150.89295799,0.00017808,2]
[405980099,1771489283150,-761.57,0.0001799,3]
[405980100,1771489283172,-380.78,0.0001799,3]
[405980101,1771489283192,-190.39,0.0001799,3]
[405980102,1771489283212,-500.0,0.00017999,2]
[405980103,1771489283232,-20569.0,0.00018,2]
[405980104,1771489283251,-301.75970908,0.00018,2]
[405980105,1771489297389,-500.0,0.00015432,2]
[405980106,1771489297412,-499.83135413,0.00015432,2]
[405980107,1771489297432,-184.75179404,0.00016783,2]
[405980108,1771489297453,-1131.0234935,0.00018251,2]
[405980109,1771489297486,-2697.45531001,0.00018741,2]
[405980110,1771489300826,500.0,0.00015432,2]
[405980111,1771489300862,500.0,0.00015432,2]
[405980112,1771489300907,500.0,0.00015432,2]
[405980113,1771489300955,500.0,0.00015432,2]
[405980114,1771489301002,500.0,0.00015432,2]
[405980115,1771489301039,500.0,0.00015432,2]
[405980116,1771489301073,500.0,0.00015432,2]
[405980117,1771489301123,500.0,0.00015432,2]
[405980118,1771489301158,500.0,0.00015432,2]
[405980119,1771489301237,500.0,0.00015432,2]
[405980120,1771489301272,500.0,0.00015432,2]
[405980121,1771489301306,500.0,0.00015432,2]
[405980122,1771489301337,500.0,0.00015432,2]
[405980123,1771489301370,500.0,0.00015432,2]
[405980124,1771489301534,500.0,0.00015432,2]
[405980125,1771489301567,500.0,0.00015432,2]
[405980126,1771489301592,500.0,0.00015432,2]
[405980127,1771489301629,500.0,0.00015432,2]
[405980128,1771489301654,409.63193146,0.00015432,2]
[405980129,1771489301680,500.0,0.00015432,2]
[405980130,1771489301708,500.0,0.00015432,2]
[405980131,1771489301739,500.0,0.00015432,2]
[405980132,1771489301764,500.0,0.00015432,2]
[405980133,1771489301789,500.0,0.00015432,2]
[405980134,1771489301813,500.0,0.00015432,2]
[405980135,1771489301868,500.0,0.00015432,2]
[405980136,1771489310873,-2823.16950214,0.00019025,2]
[405980137,1771489310894,-571.22,0.00019036,3]
[405980138,1771489310914,-8605.61049786,0.00019141,2]
[405980174,1771489831558,-547.33,0.0001,2]
[405980176,1771489831567,-150.0,0.00013392,2]
[405980178,1771489831577,-500.0,0.00014999,2]
[405980180,1771489831586,-308.09459561,0.00014999,2]
[405980182,1771489831596,-500.0,0.00014999,2]
[405980184,1771489831606,-500.0,0.00014999,2]
[405980185,1771489831615,-500.0,0.00014999,2]
[405980188,1771489831625,-500.0,0.00014999,2]
[405980189,1771489831634,-500.0,0.00014999,2]
[405980191,1771489831643,-290.96319314,0.00014999,2]
[405980193,1771489831652,-18658.55201076,0.00015,2]
[405980195,1771489831668,-8960.89374666,0.00015,2]
[405980196,1771489831679,-742.18218896,0.00015,2]
[405980219,1771489837760,-973.40312806,0.00015,2]
[405980221,1771489839826,-4631.09590182,0.00015,2]
[405980288,1771489846235,-6208.02210871,0.00015,2]
[405980294,1771489920039,-1021.78789828,0.0001485,2]
[405980303,1771490280566,267.16,2.997e-05,2]
[405980316,1771490531168,-150.0,0.00014385,2]
[405980317,1771490556937,10000.0,0.00014,30]
[405980318,1771490564224,10000.0,0.00014,30]
[405980322,1771490574399,4966.0,0.00014,30]
[405980356,1771491031657,-365.85248725,0.00013712,2]
[405980358,1771491031666,-158.590989,0.00013851,2]
[405980360,1771491031676,-203.67527038,0.00014134,2]
[405980361,1771491031685,-317.92436736,0.00014134,2]
[405980362,1771491031694,-150.0,0.00014315,2]
[405980363,1771491031704,-272.45332981,0.00014431,2]
[405980364,1771491031714,-935.16791049,0.00014873,2]
[405980365,1771491031723,-287.67380421,0.00014878,2]
[405980366,1771491031732,-449.04082876,0.00014878,2]
[405980367,1771491031741,-219.10763179,0.00014906,2]
[405980370,1771491031757,-80.89236821,0.00014906,2]
[405980372,1771491031766,-1021.78789828,0.00014906,2]
[405980373,1771491031775,-500.0,0.00014906,2]
[405980375,1771491031784,-174.34218045,0.00014906,2]
[405980377,1771491031794,-365.66257702,0.00014906,2]
[405980379,1771491031809,-1650.10949875,0.00014907,2]
[405980426,1771491040024,-8713.64705859,0.00014907,2]
[405980427,1771491040035,-1010.9757568,0.00014907,2]
[405980477,1771491044301,-2750.09981599,0.00014907,2]
[405980482,1771491045771,-9815.64911447,0.00014907,2]
[405980483,1771491045781,-7654.27846294,0.00015,2]
[405980484,1771491045790,-216.93608548,0.00016,2]
[405980485,1771491045799,-297.0,0.00016315,2]
[405980486,1771491045808,-5538.5882193,0.00016713,2]
[405980487,1771491045817,-478.2782197,0.00016713,2]
[405980488,1771491045826,-2781.3840397,0.00016714,2]
[405980489,1771491045835,-383.4209758,0.00016714,2]
[405980490,1771491045844,-377.4540482,0.00016714,2]
[405980491,1771491045853,-13221.51520902,0.000169,2]
[405980492,1771491045864,-2382.16295969,0.000169,2]
[405980493,1771491045873,-400.06856819,0.00017,2]
[405980495,1771491045882,-827.733044,0.0001703,2]
[405980497,1771491045891,-1081.4593311,0.0001703,2]
[405980499,1771491045900,-2641.2117654,0.00017135,2]
[405980500,1771491045909,-1931.31458603,0.00018085,2]
[405980501,1771491045920,-590.45931,0.00018152,2]
[405980502,1771491045931,-478.2782197,0.00018466,2]
[405980503,1771491045940,-1226.19586857,0.00018527,2]
[405980504,1771491243629,10000.0,0.00015,60]
[405982463,1771491484269,980.84,8e-05,2]
[405982464,1771491520108,683.85,7e-05,2]
[405982465,1771491720584,-213.37,0.000149,2]
[405982466,1771491720617,-150.0,0.00014904,2]
[405982468,1771491737329,-245.0,0.000155,2]
[405982469,1771491737357,-500.0,0.00015577,2]
[405982470,1771491737387,-271.75722241,0.00015577,2]
[405982471,1771491737415,-300.0,0.00015577,2]
[405982472,1771491737488,-7973.74856747,0.00015578,2]
[405982473,1771491766640,-289.86040093,0.00015578,2]
[405982474,1771491766680,-394.78877,0.00015578,2]
[405982475,1771491766734,-310.82888055,0.00015578,2]
[405982476,1771491795951,-684.64917093,0.00015578,2]
[405983078,1771492093260,278.42,2.997e-05,2]
[405983082,1771492204672,153.45,5e-05,2]
[405983083,1771492205304,153.45,5e-05,2]
[405983084,1771492205945,153.45,5e-05,2]
[405983085,1771492206436,153.45,5e-05,2]
[405983086,1771492206922,153.45,5.1e-05,2]
[405983087,1771492207517,153.45,5.1e-05,2]
[405983088,1771492208210,153.45,5.1e-05,2]
[405983089,1771492208815,153.45,5.1e-05,2]
[405983090,1771492209317,153.45,5.1e-05,2]
[405983091,1771492209923,153.45,5.1e-05,2]
[405983092,1771492210516,153.45,5.1e-05,2]
[405983093,1771492211146,153.45,5.1e-05,2]
[405983094,1771492211790,153.45,5.2e-05,2]
[405983095,1771492212458,153.45,5.2e-05,2]
[405983096,1771492212978,153.45,5.2e-05,2]
[405983097,1771492213617,153.45,5.2e-05,2]
[405983098,1771492214208,153.45,5.2e-05,2]
[405983099,1771492214796,153.45,5.2e-05,2]
[405983100,1771492215388,153.45,5.2e-05,2]
[405983101,1771492215950,153.45,5.2e-05,2]
[405983102,1771492216992,153.45,5.3e-05,2]
[405983103,1771492217641,153.45,5.3e-05,2]
[405983104,1771492218179,153.45,5.3e-05,2]
[405983105,1771492218837,153.45,5.3e-05,2]
[405983106,1771492219445,153.45,5.3e-05,2]
[405983108,1771492219941,153.45,5.3e-05,2]
[405983109,1771492220534,153.45,5.3e-05,2]
[405983110,1771492221384,153.45,5.3e-05,2]
[405983111,1771492221819,153.45,5.4e-05,2]
[405983112,1771492222483,153.45,5.4e-05,2]
[405983113,1771492223081,153.45,5.4e-05,2]
[405983114,1771492223651,153.45,5.4e-05,2]
[405983115,1771492224166,153.45,5.4e-05,2]
[405983116,1771492224758,153.45,5.4e-05,2]
[405983117,1771492225378,153.45,5.4e-05,2]
[405983118,1771492225989,153.45,5.4e-05,2]
[405983119,1771492226602,153.45,5.5e-05,2]
[405983120,1771492227080,153.45,5.5e-05,2]
[405983121,1771492227744,153.45,5.5e-05,2]
[405983122,1771492228214,153.45,5.5e-05,2]
[405983123,1771492228801,153.45,5.5e-05,2]
[405983152,1771492231892,-5000.0,0.00012879,2]
[405983154,1771492231902,-2925.50161944,0.00013009,2]
[405983156,1771492231911,-604.0,0.00013009,2]
[405983159,1771492231920,-150.0,0.00013074,2]
[405983160,1771492231929,-500.0,0.00013273,2]
[405983162,1771492231939,-507.04993598,0.00013699,2]
[405983164,1771492231947,-500.0,0.00013699,2]
[405983165,1771492231956,-1002.92404107,0.00013821,2]
[405983166,1771492231965,-983.0,0.00014799,2]
[405983167,1771492231974,-743.87591559,0.000148,2]
[405983168,1771492231983,-279.13405472,0.00015074,2]
[405983169,1771492231991,-208.6507382,0.00015322,2]
[405983170,1771492232000,-300.0,0.00015504,2]
[405983171,1771492232009,-589.36195663,0.00015505,2]
[405983172,1771492232018,-634.69487925,0.00015505,2]
[405983173,1771492232027,-1557.48499543,0.00015505,2]
[405983174,1771492232035,-2536.24073747,0.00015505,2]
[405983175,1771492232044,-557.43640015,0.00015505,2]
[405983176,1771492232053,-1034.82615823,0.00015577,2]
[405983177,1771492232062,-2522.45425962,0.00015578,2]
[405983178,1771492232071,-570.656268,0.00015578,2]
[405983179,1771492232080,-480.42521725,0.00015661,2]
[405983180,1771492232089,-864.76539106,0.00015661,2]
[405983182,1771492232099,-1537.36069521,0.00015661,2]
[405983184,1771492232109,-2402.12608627,0.00015661,2]
[405983186,1771492232118,-192.08966316,0.00015661,2]
[405983188,1771492232127,-768.35865265,0.00015661,2]
[405983190,1771492232135,-1728.80696847,0.00015661,2]
[405983192,1771492232145,-3073.43461062,0.00015661,2]
[405983194,1771492232154,-4802.24157909,0.00015661,2]
[405983196,1771492232163,-309.60664376,0.00015661,2]
[405983198,1771492232172,-557.29195877,0.00015661,2]
[405983200,1771492232181,-990.74126003,0.00015661,2]
[405983202,1771492232190,-595.73750778,0.00015661,2]
[405983204,1771492232199,-1072.327514,0.00015661,2]
[405983206,1771492232209,-1906.36002489,0.00015661,2]
[405983208,1771492232218,-2978.68753889,0.00015661,2]
[405983210,1771492232227,-327.33846821,0.00015661,2]
[405983212,1771492232237,-589.20924279,0.00015661,2]
[405983214,1771492232247,-500.0,0.00015873,2]
[405983216,1771492232256,-500.0,0.00015873,2]
[405983218,1771492232265,-500.0,0.00015873,2]
[405983220,1771492232275,-500.0,0.00015873,2]
[405983222,1771492232284,-500.0,0.00015873,2]
[405983224,1771492232294,-500.0,0.00015873,2]
[405983226,1771492232308,-180.72804598,0.00015873,2]
[405983228,1771492232317,-500.0,0.00015873,2]
[405983230,1771492232326,-3847.3921973,0.00015874,2]
[405983232,1771492232335,-222.0686831,0.00015874,2]
[405983234,1771492232346,-956.5564396,0.00015874,2]
[405983236,1771492232355,-600.0,0.00015889,2]
[405983238,1771492232364,-183.81875,0.0001594,2]
[405983240,1771492232375,-4099.99,0.00016214,2]
[405983242,1771492232384,-151.0,0.00016214,2]
[405983244,1771492232393,-3790.03623892,0.00016215,2]
[405983246,1771492232403,-502.23497652,0.00016713,2]
[405983248,1771492232412,-649.67,0.00017252,2]
[405983250,1771492232421,-371.42023455,0.00017258,2]
[405983253,1771492232431,-668.55642219,0.00017258,2]
[405983255,1771492232440,-1188.54475057,0.00017258,2]
[405983257,1771492232449,-258.5742847,0.00017258,2]
[405983258,1771492232458,-4099.99,0.00017352,2]
[405983260,1771492232467,-169.590595,0.00017353,2]
[405983270,1771492232575,-221.23100525,0.00017452,2]
[405983271,1771492232586,-720.0,0.00017477,2]
[405983272,1771492232595,-3847.3921973,0.00017502,2]
[405983273,1771492232605,-343.50522069,0.00017507,2]
[405983274,1771492232614,-4099.99,0.00017629,2]
[405983275,1771492232624,-3517.9323111,0.00017629,2]
[405983276,1771492232633,-225.55460421,0.00017641,7]
[405983277,1771492232643,-465.43371247,0.00017658,2]
[405983278,1771492232652,-8263.6089684,0.00017773,2]
[405983279,1771492232662,-1586.50973379,0.00017819,2]
[405983280,1771492232676,-222.0686831,0.00017849,2]
[405983281,1771492232685,-570.656268,0.00017994,2]
[405983282,1771492232695,-398.21580945,0.00018049,2]
[405983283,1771492232704,-392.18481768,0.00018087,2]
[405983284,1771492232713,-406.74514593,0.00018187,7]
[405983285,1771492232723,-394.78877,0.00018202,2]
[405983286,1771492232732,-500.0,0.00018203,2]
[405983287,1771492232742,-475.77324204,0.00018208,7]
[405983288,1771492232751,-826.61027334,0.00018237,2]
[405983289,1771492232760,-4099.99,0.00018266,2]
[405983290,1771492232769,-2870.97970703,0.0001829,2]
[405983291,1771492232779,-592.49683043,0.0001859,2]
[405983292,1771492232788,-707.23127759,0.00018646,2]
[405983293,1771492232797,-746.12200541,0.00018813,2]
[405983294,1771492232807,-4099.99,0.00018906,2]
[405983295,1771492232816,-2100.0,0.00018907,2]
[405983296,1771492232825,-590.45931,0.00018916,2]
[405983297,1771492232835,-3847.3921973,0.0001913,2]
[405983298,1771492232844,-864.0,0.00019225,2]
[405983299,1771492232853,-3310.05850397,0.00019396,2]
[405983300,1771492232862,-2507.22,0.000194,2]
[405983301,1771492232872,-444.24,0.0001961,3]
[405983302,1771492232881,-222.12,0.0001961,3]
[405983303,1771492232890,-666.4,0.0001961,3]
[405983304,1771492232899,-1277.4244,0.0001961,2]
[405983305,1771492232909,-500.0,0.0001962,2]
[405983306,1771492232919,-500.0,0.0001962,2]
[405983307,1771492232928,-500.0,0.0001962,2]
[405983308,1771492232937,-500.0,0.0001962,2]
[405983309,1771492232947,-500.0,0.0001962,2]
[405983310,1771492232956,-500.0,0.0001962,2]
[405983311,1771492232965,-500.0,0.0001962,2]
[405983312,1771492232974,-500.0,0.0001962,2]
[405983313,1771492232984,-500.0,0.0001962,2]
[405983314,1771492232993,-500.0,0.0001962,2]
[405983315,1771492233003,-500.0,0.0001962,2]
[405983316,1771492233012,-250.0,0.0001962,2]
[405983317,1771492233022,-500.0,0.0001962,2]
[405983318,1771492233031,-250.0,0.0001962,2]
[405983319,1771492233040,-500.0,0.0001962,2]
[405983320,1771492233049,-250.0,0.0001962,2]
[405983321,1771492233058,-500.0,0.0001962,2]
[405983322,1771492233068,-250.0,0.0001962,2]
[405983323,1771492233077,-250.0,0.0001962,2]
[405983324,1771492233087,-250.0,0.0001962,2]
[405983325,1771492233096,-250.0,0.0001962,2]
[405983326,1771492233105,-250.0,0.0001962,2]
[405983327,1771492233114,-250.0,0.0001962,2]
[405983328,1771492233124,-250.0,0.0001962,2]
[405983329,1771492233133,-250.0,0.0001962,2]
[405983330,1771492233142,-250.0,0.0001962,2]
[405983331,1771492233152,-250.0,0.0001962,2]
[405983332,1771492233161,-250.0,0.0001962,2]
[405983333,1771492233170,-187.78006525,0.0001962,2]
[405983334,1771492233180,-194.72792766,0.0001962,2]
[405983335,1771492233189,-201.93286099,0.0001962,2]
[405983336,1771492233199,-209.40437684,0.0001962,2]
[405983337,1771492233210,-217.15233878,0.0001962,2]
[405983338,1771492233219,-225.18697532,0.0001962,2]
[405983339,1771492233228,-233.51889341,0.0001962,2]
[405983340,1771492233237,-242.15909246,0.0001962,2]
[405983341,1771492233247,-251.11897888,0.0001962,2]
[405983342,1771492233256,-260.4103811,0.0001962,2]
[405983343,1771492233265,-270.0455652,0.0001962,2]
[405983344,1771492233275,-280.03725112,0.0001962,2]
[405983345,1771492233284,-290.39862941,0.0001962,2]
[405983346,1771492233295,-301.1433787,0.0001962,2]
[405983347,1771492233308,-250.0,0.0001962,2]
[405983348,1771492233318,-250.0,0.0001962,2]
[405983349,1771492233328,-750.0,0.0001962,2]
[405983350,1771492233337,-250.0,0.0001962,2]
[405983351,1771492233348,-250.0,0.0001962,2]
[405983352,1771492233357,-750.0,0.0001962,2]
[405983353,1771492233366,-250.0,0.0001962,2]
[405983354,1771492233377,-750.0,0.0001962,2]
[405983355,1771492233387,-250.0,0.0001962,2]
[405983356,1771492233396,-750.0,0.0001962,2]
[405983357,1771492233406,-250.0,0.0001962,2]
[405983358,1771492233415,-750.0,0.0001962,2]
[405983359,1771492233424,-250.0,0.0001962,2]
[405983360,1771492233434,-750.0,0.0001962,2]
[405983361,1771492233443,-750.0,0.0001962,2]
[405983362,1771492233452,-250.0,0.0001962,2]
[405983363,1771492233462,-750.0,0.0001962,2]
[405983364,1771492233471,-250.0,0.0001962,2]
[405983365,1771492233480,-750.0,0.0001962,2]
[405983366,1771492233490,-250.0,0.0001962,2]
[405983367,1771492233499,-750.0,0.0001962,2]
[405983368,1771492233508,-250.0,0.0001962,2]
[405983369,1771492233517,-750.0,0.0001962,2]
[405983370,1771492233526,-750.0,0.0001962,2]
[405983371,1771492233536,-250.0,0.0001962,2]
[405983372,1771492233546,-750.0,0.0001962,2]
[405983373,1771492233555,-250.0,0.0001962,2]
[405983374,1771492233565,-772.36728463,0.0001962,2]
[405983375,1771492233575,-250.0,0.0001962,2]
[405983376,1771492233585,-250.0,0.0001962,2]
[405983377,1771492233594,-250.0,0.0001962,2]
[405983378,1771492233603,-250.0,0.0001962,2]
[405983379,1771492233612,-250.0,0.0001962,2]
[405983380,1771492233621,-250.0,0.0001962,2]
[405983381,1771492233631,-151.0,0.0001962,2]
[405983382,1771492233640,-250.0,0.0001962,2]
[405983383,1771492233651,-250.0,0.0001962,2]
[405983384,1771492233660,-250.0,0.0001962,2]
[405983385,1771492233671,-151.0,0.0001962,2]
[405983386,1771492233680,-250.0,0.0001962,2]
[405983387,1771492233690,-250.0,0.0001962,2]
[405983388,1771492233700,-250.0,0.0001962,2]
[405983389,1771492233709,-151.0,0.0001962,2]
[405983390,1771492233719,-250.0,0.0001962,2]
[405983391,1771492233730,-250.0,0.0001962,2]
[405983392,1771492233740,-250.0,0.0001962,2]
[405983393,1771492233749,-264.40984106,0.0001962,2]
[405983394,1771492233758,-151.0,0.0001962,2]
[405983395,1771492233767,-250.0,0.0001962,2]
[405983396,1771492233776,-250.0,0.0001962,2]
[405983397,1771492233785,-250.0,0.0001962,2]
[405983398,1771492233794,-151.0,0.0001962,2]
[405983399,1771492233803,-250.0,0.0001962,2]
[405983400,1771492233812,-250.0,0.0001962,2]
[405983401,1771492233824,-250.0,0.0001962,2]
[405983402,1771492233833,-250.0,0.0001962,2]
[405983403,1771492233842,-151.0,0.0001962,2]
[405983404,1771492233851,-250.0,0.0001962,2]
[405983405,1771492233859,-250.0,0.0001962,2]
[405983406,1771492233868,-250.0,0.0001962,2]
[405983407,1771492233877,-250.0,0.0001962,2]
[405983408,1771492233886,-250.0,0.0001962,2]
[405983409,1771492233895,-194.67826678,0.0001962,2]
[405983410,1771492233904,-250.0,0.0001962,2]
[405983411,1771492233914,-250.0,0.0001962,2]
[405983412,1771492233923,-250.0,0.0001962,2]
[405983413,1771492233932,-250.0,0.0001962,2]
[405983414,1771492233941,-270.56129644,0.0001962,2]
[405983415,1771492233950,-250.0,0.0001962,2]
[405983416,1771492233959,-250.0,0.0001962,2]
[405983417,1771492233968,-250.0,0.0001962,2]
[405983418,1771492233978,-250.0,0.0001962,2]
[405983419,1771492233989,-250.0,0.0001962,2]
[405983420,1771492233999,-250.0,0.0001962,2]
[405983421,1771492234007,-250.0,0.0001962,2]
[405983422,1771492234016,-250.0,0.0001962,2]
[405983423,1771492234026,-250.0,0.0001962,2]
[405983424,1771492234035,-250.0,0.0001962,2]
[405983425,1771492234043,-250.0,0.0001962,2]
[405983426,1771492234052,-250.0,0.0001962,2]
[405983427,1771492234061,-250.0,0.0001962,2]
[405983428,1771492234070,-250.0,0.0001962,2]
[405983429,1771492234079,-250.0,0.0001962,2]
[405983430,1771492234090,-250.0,0.0001962,2]
[405983431,1771492234099,-250.0,0.0001962,2]
[405983432,1771492234107,-250.0,0.0001962,2]
[405983433,1771492234116,-250.0,0.0001962,2]
[405983434,1771492234125,-250.0,0.0001962,2]
[405983435,1771492234135,-250.0,0.0001962,2]
[405983436,1771492234144,-250.0,0.0001962,2]
[405983437,1771492234153,-250.0,0.0001962,2]
[405983438,1771492234162,-250.0,0.0001962,2]
[405983439,1771492234171,-250.0,0.0001962,2]
[405983440,1771492234181,-250.0,0.0001962,2]
[405983441,1771492234189,-250.0,0.0001962,2]
[405983442,1771492234198,-2000.0,0.0001962,2]
[405983443,1771492234207,-151.0,0.0001962,2]
[405983444,1771492234216,-2074.0,0.0001962,2]
[405983445,1771492234226,-151.0,0.0001962,2]
[405983446,1771492234235,-2150.738,0.0001962,2]
[405983447,1771492234245,-151.0,0.0001962,2]
[405983448,1771492234254,-1737.8723887,0.0001962,2]
[405983460,1771492238072,-490.43835165,0.00015661,2]
[405983465,1771492240219,-557.04474664,0.00015661,2]
[405983466,1771492240228,-288.07608022,0.00018888,2]
[405983467,1771492240241,-326.35483834,0.0001962,2]
[405983468,1771492240255,-166.08807896,0.0001962,2]
[405983469,1771492240264,-151.0,0.0001962,2]
[405983470,1771492240273,-780.22667328,0.0001962,2]
[405983506,1771492246076,-1532.61029904,0.0001962,2]
[405983507,1771492246085,-151.0,0.0001962,2]
[405983508,1771492246095,-263.55671522,0.0001962,2]
[405983509,1771492246182,-1114.84906682,0.0001962,2]
[405983510,1771492246192,-151.0,0.0001962,2]
[405983511,1771492246201,-205.55818836,0.0001962,2]
[405983512,1771492246210,-590.45931,0.0001968,2]
[405983513,1771492246220,-3517.9323111,0.00019681,2]
[405983514,1771492246229,-222.0686831,0.00019823,2]
[405983515,1771492246238,-500.0,0.00019906,2]
[405983516,1771492246247,-4099.99,0.00019968,2]
[405983517,1771492246256,-8263.6089684,0.00019969,2]
[405983518,1771492246265,-4099.99,0.00019999,2]
[405983519,1771492246274,-4099.99,0.00019999,2]
[405983520,1771492246283,-2536.92790627,0.0002,2]
[405983521,1771492246292,-373.47708426,0.0002,2]
[405983522,1771492246303,-23000.0,0.0002,2]
[405983523,1771492246315,-203.75268638,0.0002,2]
[405983524,1771492246325,-199.45957522,0.0002,2]
[405983525,1771492246334,-9000.0,0.00020239,2]
[405983526,1771492246344,-6326.21524477,0.00020239,2]
[405983527,1771492246355,-4099.99,0.0002034,2]
[405983528,1771492246364,-570.656268,0.00020409,2]
[405983529,1771492246376,-590.45931,0.00020445,2]
[405983530,1771492246386,-675.09032243,0.00020467,7]
[405983531,1771492246396,-3494.23369285,0.00020527,2]
[405983532,1771492246406,-3847.3921973,0.00020758,2]
[405983533,1771492246415,-158.590989,0.00020776,2]
[405983534,1771492246424,-394.78877,0.00020825,2]
[405983535,1771492246433,-888.48,0.0002098,3]
[405983536,1771492246442,-444.24,0.0002098,3]
[405983537,1771492246450,-4991.82,0.00020989,10]
[405983538,1771492246459,-4099.99,0.00020998,2]
[405983539,1771492246468,-4099.99,0.00020999,2]
[405983540,1771492246477,-4099.99,0.00020999,2]
[405983541,1771492246486,-500.0,0.00021,2]
[405983542,1771492246495,-15004.18388421,0.00021,2]
[405983543,1771492246506,-4833.14999973,0.00021,2]
[405984003,1771492804723,435.47,5e-05,2]
[405984004,1771492805311,435.47,5e-05,2]
[405984005,1771492805785,435.47,5e-05,2]
[405984006,1771492806406,435.47,5e-05,2]
[405984007,1771492806980,435.47,5e-05,2]
[405984008,1771492807562,435.47,5.1e-05,2]
[405984009,1771492808167,133.46,5.1e-05,2]
[405984010,1771492808196,302.01,5.1e-05,2]
[405984011,1771492808752,435.47,5.1e-05,2]
[405984012,1771492809337,435.47,5.1e-05,2]
[405984013,1771492809788,435.47,5.1e-05,2]
[405984014,1771492810571,435.47,5.1e-05,2]
[405984015,1771492811070,435.47,5.1e-05,2]
[405984016,1771492811732,435.47,5.1e-05,2]
[405984017,1771492812246,435.47,5.1e-05,2]
[405984018,1771492812857,435.47,5.1e-05,2]
[405984019,1771492813520,435.47,5.2e-05,2]
[405984020,1771492814094,435.47,5.2e-05,2]
[405984021,1771492814692,435.47,5.2e-05,2]
[405984022,1771492815165,435.47,5.2e-05,2]
[405984023,1771492815828,435.47,5.2e-05,2]
[405984024,1771492816291,435.47,5.2e-05,2]